fUSD/lending_fUSD_20241222
["ID","MTS","AMOUNT","RATE_DAILY","PERIOD"]
[346330877,1734895848839,-500.0,0.00019726,2]
[346330879,1734895848848,-500.0,0.00019726,2]
[346330880,1734895848858,-507.15,0.00019726,2]
[346330883,1734895848867,-500.0,0.00019726,2]
[346330885,1734895848877,-500.0,0.00019726,2]
[346330887,1734895848888,-1985.36,0.00019726,2]
[346330889,1734895848897,-1914.15,0.00019726,2]
[346330891,1734895848907,-500.0,0.00019726,2]
[346330893,1734895848917,-1487.57,0.00019726,2]
[346330894,1734895848926,-500.0,0.00019726,2]
[346330896,1734895848936,-500.0,0.00019726,2]
[346330898,1734895848946,-500.0,0.00019726,2]
[346330900,1734895848958,-1190.15,0.00019726,2]
[346330903,1734895848969,-1000.0,0.00019726,2]
[346330905,1734895848979,-860.5,0.00019726,2]
[346330907,1734895848989,-500.0,0.00019726,2]
[346330909,1734895848998,-1045.66,0.00019726,2]
[346330911,1734895849008,-626.03,0.00019726,2]
[346330913,1734895849018,-2775.89,0.00019726,2]
[346330915,1734895849028,-776.45,0.00019726,2]
[346330916,1734895849037,-667.66,0.00019726,2]
[346330918,1734895849047,-500.0,0.00019726,2]
[346330920,1734895849057,-500.0,0.00019726,2]
[346330922,1734895849068,-500.0,0.00019726,2]
[346330924,1734895849077,-500.0,0.00019726,2]
[346330926,1734895849087,-644.46,0.00019726,2]
[346330928,1734895849096,-2065.12,0.00019726,2]
[346330930,1734895849106,-500.0,0.00019726,2]
[346330932,1734895849115,-1712.59,0.00019726,2]
[346330933,1734895849124,-500.0,0.00019726,2]
[346330935,1734895849133,-500.0,0.00019726,2]
[346330937,1734895849143,-559.07,0.00019726,2]
[346330938,1734895849152,-1409.42,0.00019726,2]
[346330940,1734895849162,-16380.15,0.00019726,2]
[346330942,1734895849171,-611.3,0.00019726,2]
[346330944,1734895849181,-2242.72,0.00019726,2]
[346330945,1734895849190,-2904.3,0.00019726,2]
[346330947,1734895849199,-500.0,0.00019726,2]
[346330949,1734895849211,-500.0,0.00019726,2]
[346330950,1734895849221,-770.68,0.00019726,2]
[346330952,1734895849231,-22104.72,0.00019726,2]
[346330954,1734895849242,-930.17,0.00019726,2]
[346330956,1734895849253,-500.0,0.00019726,2]
[346330957,1734895849262,-818.72,0.00019726,2]
[346330959,1734895849271,-937.58,0.00019726,2]
[346330961,1734895849280,-500.0,0.00019726,2]
[346330963,1734895849290,-500.0,0.00019726,2]
[346330964,1734895849300,-500.0,0.00019726,2]
[346330966,1734895849310,-500.0,0.00019726,2]
[346330968,1734895849320,-678.07,0.00019726,2]
[346330970,1734895849330,-500.0,0.00019726,2]
[346330971,1734895849340,-635.69115342,0.00019726,2]
[346330973,1734895849350,-616.19,0.00019726,2]
[346330975,1734895849360,-403.42071516,0.00019726,2]
[346330977,1734895849370,-1380.65,0.00019726,2]
[346330979,1734895849380,-1149.62,0.00019726,2]
[346330980,1734895849390,-500.0,0.00019726,2]
[346330982,1734895849399,-1325.76,0.00019726,2]
[346330984,1734895849408,-500.0,0.00019726,2]
[346330986,1734895849418,-657.87,0.00019726,2]
[346330988,1734895849427,-500.0,0.00019726,2]
[346330989,1734895849436,-3795.27,0.00019726,2]
[346330991,1734895849447,-785.89,0.00019726,2]
[346330993,1734895849461,-3678.02,0.00019726,2]
[346330995,1734895849472,-500.0,0.00019726,2]
[346330997,1734895849482,-500.0,0.00019726,2]
[346330998,1734895849492,-880.89,0.00019726,2]
[346331000,1734895849503,-520.62,0.00019726,2]
[346331002,1734895849513,-500.0,0.00019726,2]
[346331004,1734895849522,-43219.44,0.00019726,2]
[346331005,1734895849532,-500.0,0.00019726,2]
[346331006,1734895849542,-2452.26,0.00019726,2]
[346331007,1734895849551,-500.0,0.00019726,2]
[346331008,1734895849563,-612.66,0.00019726,2]
[346331009,1734895849572,-697.41,0.00019726,2]
[346331010,1734895849582,-2183.5,0.00019726,2]
[346331011,1734895849591,-1244.16,0.00019726,2]
[346331012,1734895849600,-500.0,0.00019726,2]
[346331013,1734895849610,-12543.27,0.00019726,2]
[346331014,1734895849620,-1262.91,0.00019726,2]
[346331015,1734895849629,-4184.78,0.00019726,2]
[346331016,1734895849638,-1290.74,0.00019726,2]
[346331017,1734895849648,-1771.12,0.00019726,2]
[346331018,1734895849657,-733.38,0.00019726,2]
[346331019,1734895849666,-500.0,0.00019726,2]
[346331020,1734895849676,-690.3,0.00019726,2]
[346331021,1734895849685,-1447.2,0.00019726,2]
[346331022,1734895849695,-500.0,0.00019726,2]
[346331023,1734895849704,-885.97,0.00019726,2]
[346331024,1734895849714,-1849.78,0.00019726,2]
[346331025,1734895849723,-10545.47,0.00019726,2]
[346331026,1734895849732,-286.44,0.00019726,2]
[346331027,1734895849742,-8178.3,0.00019726,2]
[346331028,1734895849752,-3160.82,0.00019726,2]
[346331029,1734895849762,-3348.55,0.00019726,2]
[346331030,1734895849772,-500.0,0.00019726,2]
[346331031,1734895849782,-500.0,0.00019726,2]
[346331032,1734895849791,-500.0,0.00019726,2]
[346331033,1734895849801,-500.0,0.00019726,2]
[346331034,1734895849810,-1168.59,0.00019726,2]
[346331035,1734895849820,-4977.51,0.00019726,2]
[346331036,1734895849829,-500.0,0.00019726,2]
[346331037,1734895849839,-500.0,0.00019726,2]
[346331038,1734895849849,-905.43,0.00019726,2]
[346331039,1734895849859,-420.795,0.00019726,2]
[346331040,1734895849868,-500.0,0.00019726,2]
[346331041,1734895849878,-3349.93,0.00019726,2]
[346331042,1734895849887,-1797.49,0.00019726,2]
[346331043,1734895849896,-1217.37,0.00019726,2]
[346331044,1734895849906,-500.0,0.00019726,2]
[346331045,1734895849916,-5604.39,0.00019726,2]
[346331046,1734895849925,-500.0,0.00019726,2]
[346331047,1734895849935,-2093.23,0.00019726,2]
[346331048,1734895849945,-4065.4,0.00019726,2]
[346331049,1734895849955,-500.0,0.00019726,2]
[346331050,1734895849967,-674.88,0.00019726,2]
[346331051,1734895849976,-444.15,0.00019726,2]
[346331052,1734895849986,-1667.4,0.00019726,2]
[346331053,1734895849995,-1591.46,0.00019726,2]
[346331054,1734895850005,-500.0,0.00019726,2]
[346331055,1734895850015,-500.0,0.00019726,2]
[346331056,1734895850025,-500.0,0.00019726,2]
[346331057,1734895850034,-7417.88,0.00019726,2]
[346331058,1734895850044,-500.0,0.00019726,2]
[346331059,1734895850053,-897.8,0.00019726,2]
[346331060,1734895850063,-500.0,0.00019726,2]
[346331061,1734895850072,-3011.5,0.00019726,2]
[346331062,1734895850081,-500.0,0.00019726,2]
[346331063,1734895850091,-475.47,0.00019726,2]
[346331064,1734895850100,-150.0,0.00019726,2]
[346331065,1734895850109,-150.0,0.00019731,2]
[346331066,1734895850119,-150.0,0.00019732,2]
[346331067,1734895850128,-150.0,0.00019741,2]
[346331068,1734895850138,-150.0,0.00019742,2]
[346331069,1734895850148,-150.0,0.00019743,2]
[346331070,1734895850158,-150.0,0.00019743,2]
[346331071,1734895850167,-150.0,0.00019744,2]
[346331072,1734895850177,-1500.0,0.00019744,2]
[346331073,1734895850187,-150.0,0.00019749,2]
[346331074,1734895850195,-1500.0,0.00019753,2]
[346331075,1734895850207,-150.0,0.00019754,2]
[346331076,1734895850216,-150.0,0.00019754,2]
[346331077,1734895850226,-237.95302683,0.00019763,2]
[346331078,1734895850235,-13463.36080466,0.00019763,2]
[346331079,1734895850245,-328.94202155,0.00019763,2]
[346331080,1734895850255,-150.0,0.00019764,2]
[346331081,1734895850265,-1500.0,0.00019766,2]
[346331082,1734895850275,-1500.0,0.00019767,2]
[346331083,1734895850285,-150.0,0.00019767,2]
[346331084,1734895850295,-1389.96871424,0.00019767,2]
[346331085,1734895850304,-150.0,0.00019767,2]
[346331086,1734895850314,-150.0,0.00019767,2]
[346331087,1734895850323,-150.0,0.0001977,2]
[346331088,1734895850333,-150.0,0.00019775,2]
[346331089,1734895850342,-150.0,0.00019776,2]
[346331090,1734895850352,-150.0,0.00019778,2]
[346331091,1734895850361,-150.0,0.00019781,2]
[346331092,1734895850371,-150.0,0.00019784,2]
[346331093,1734895850380,-150.0,0.00019787,2]
[346331094,1734895850391,-500.0,0.0001979,2]
[346331095,1734895850400,-150.0,0.00019792,2]
[346331096,1734895850410,-150.0,0.00019794,2]
[346331097,1734895850420,-150.0,0.00019796,2]
[346331098,1734895850430,-150.0,0.00019797,2]
[346331099,1734895850439,-150.0,0.00019798,2]
[346331100,1734895850452,-150.0,0.00019798,2]
[346331101,1734895850464,-161.07946134,0.00019799,2]
[346331102,1734895850476,-109751.92442705,0.000198,2]
[346331103,1734895850487,-158.45428882,0.000198,2]
[346331104,1734895850496,-158.45428882,0.000198,2]
[346331105,1734895850506,-158.45,0.000198,2]
[346331106,1734895850515,-1080.450673,0.000198,2]
[346331107,1734895850527,-150.0,0.00019801,2]
[346331108,1734895850537,-150.0,0.00019802,2]
[346331109,1734895850547,-150.0,0.00019804,2]
[346331110,1734895850556,-1500.0,0.00019805,2]
[346331111,1734895850566,-150.0,0.00019808,2]
[346331112,1734895850575,-150.0,0.00019812,2]
[346331113,1734895850585,-150.0,0.00019818,2]
[346331114,1734895850595,-150.0,0.00019819,2]
[346331115,1734895850604,-150.0,0.00019821,2]
[346331116,1734895850614,-150.0,0.00019821,2]
[346331117,1734895850623,-150.0,0.00019823,2]
[346331118,1734895850633,-150.0,0.00019825,2]
[346331119,1734895850643,-516.85589827,0.00019825,2]
[346331120,1734895850653,-150.0,0.00019829,2]
[346331121,1734895850663,-1500.0,0.00019832,2]
[346331122,1734895850672,-150.0,0.00019832,2]
[346331123,1734895850682,-150.0,0.00019835,2]
[346331124,1734895850691,-4915.604,0.0001984,2]
[346331125,1734895850701,-206.319,0.0001984,2]
[346331126,1734895850711,-150.0,0.0001984,2]
[346331127,1734895850721,-150.0,0.00019847,2]
[346331128,1734895850731,-150.0,0.00019847,2]
[346331129,1734895850742,-150.0,0.00019848,2]
[346331130,1734895850752,-150.0,0.0001985,2]
[346331131,1734895850762,-150.0,0.00019851,2]
[346331132,1734895850773,-150.0,0.00019851,2]
[346331133,1734895850783,-150.0,0.00019853,2]
[346331134,1734895850793,-150.0,0.00019855,2]
[346331135,1734895850803,-150.0,0.0001986,2]
[346331136,1734895850813,-150.0,0.00019868,2]
[346331137,1734895850823,-150.0,0.00019868,2]
[346331138,1734895850833,-150.0,0.00019869,2]
[346331139,1734895850843,-23513.99892552,0.00019875,2]
[346331140,1734895850853,-150.0,0.00019875,2]
[346331141,1734895850864,-150.0,0.00019876,2]
[346331142,1734895850874,-148134.56047229,0.0001988,2]
[346331143,1734895850884,-150.0,0.0001988,2]
[346331144,1734895850893,-150.0,0.00019882,2]
[346331145,1734895850903,-150.0,0.00019883,2]
[346331146,1734895850913,-150.0,0.00019883,2]
[346331147,1734895850923,-1500.0,0.00019888,2]
[346331148,1734895850933,-150.0,0.00019888,2]
[346331149,1734895850943,-150.0,0.0001989,2]
[346331150,1734895850953,-1500.0,0.00019892,2]
[346331151,1734895850963,-150.0,0.00019893,2]
[346331152,1734895850973,-100043.8403191,0.00019895,2]
[346331153,1734895850983,-150.0,0.00019897,2]
[346331154,1734895850992,-1173.36,0.00019899,2]
[346331155,1734895851002,-1173.36,0.00019899,2]
[346331156,1734895851012,-150.0,0.00019899,2]
[346331157,1734895851022,-126547.73607695,0.000199,2]
[346331158,1734895851032,-5800.0,0.000199,2]
[346331159,1734895851042,-2000.0,0.000199,2]
[346331160,1734895851052,-200.0,0.000199,2]
[346331161,1734895851061,-200.0,0.000199,2]
[346331162,1734895851071,-3000.0,0.000199,2]
[346331163,1734895851081,-199.12582287,0.000199,2]
[346331164,1734895851090,-15455.78905919,0.000199,2]
[346331165,1734895851101,-365.0,0.000199,2]
[346331166,1734895851110,-1000.0,0.000199,2]
[346331167,1734895851120,-460.0,0.000199,2]
[346331168,1734895851130,-178.26107492,0.000199,2]
[346331169,1734895851140,-178.26107492,0.000199,2]
[346331170,1734895851149,-178.26107492,0.000199,2]
[346331171,1734895851159,-178.26,0.000199,2]
[346331172,1734895851169,-237.95302683,0.000199,2]
[346331173,1734895851179,-172.06622895,0.000199,3]
[346331174,1734895851189,-13463.36080466,0.000199,2]
[346331175,1734895851199,-2000.0,0.000199,2]
[346331176,1734895851209,-200.0,0.000199,2]
[346331177,1734895851219,-328.94202155,0.000199,2]
[346331178,1734895851230,-150.0,0.00019902,2]
[346331179,1734895851240,-150.0,0.00019905,2]
[346331180,1734895851250,-150.0,0.00019906,2]
[346331181,1734895851260,-150.0,0.00019907,2]
[346331182,1734895851270,-150.0,0.00019913,2]
[346331183,1734895851279,-150.0,0.00019916,2]
[346331184,1734895851289,-150.0,0.00019916,2]
[346331185,1734895851299,-150.0,0.00019918,2]
[346331186,1734895851309,-150.0,0.00019921,2]
[346331187,1734895851319,-150.0,0.00019929,2]
[346331188,1734895851329,-150.0,0.00019929,2]
[346331189,1734895851339,-150.0,0.00019929,2]
[346331190,1734895851349,-1500.0,0.0001993,2]
[346331191,1734895851359,-150.0,0.00019931,2]
[346331192,1734895851368,-150.0,0.00019931,2]
[346331193,1734895851378,-150.0,0.00019934,2]
[346331194,1734895851388,-150.0,0.00019934,2]
[346331195,1734895851397,-150.0,0.00019937,2]
[346331196,1734895851407,-272.04,0.00019937,2]
[346331197,1734895851417,-150.0,0.00019944,2]
[346331198,1734895851427,-1500.0,0.00019944,2]
[346331199,1734895851437,-150.0,0.00019944,2]
[346331200,1734895851450,-150.0,0.0001995,2]
[346331201,1734895851460,-150.0,0.00019952,2]
[346331202,1734895851470,-201.82,0.00019952,2]
[346331203,1734895851481,-150.0,0.00019954,2]
[346331204,1734895851491,-150.0,0.00019954,2]
[346331205,1734895851501,-150.0,0.00019956,2]
[346331206,1734895851512,-150.0,0.00019959,2]
[346331207,1734895851522,-1500.0,0.00019959,2]
[346331208,1734895851531,-159653.34699418,0.0001996,2]
[346331209,1734895851542,-150.0,0.00019962,2]
[346331210,1734895851552,-150.0,0.00019964,2]
[346331211,1734895851561,-150.0,0.00019968,2]
[346331212,1734895851571,-1500.0,0.00019969,2]
[346331213,1734895851581,-400.0,0.0001997,2]
[346331214,1734895851591,-400.0,0.0001997,2]
[346331215,1734895851600,-400.0,0.0001997,2]
[346331216,1734895851610,-400.0,0.0001997,2]
[346331217,1734895851620,-400.0,0.0001997,2]
[346331218,1734895851629,-400.0,0.0001997,2]
[346331219,1734895851639,-410.76098945,0.0001997,2]
[346331220,1734895851649,-150.0,0.0001997,2]
[346331221,1734895851658,-500.0,0.00019973,2]
[346331222,1734895851668,-150.0,0.00019973,2]
[346331223,1734895851677,-150.0,0.0001998,2]
[346331224,1734895851687,-3474662.06300808,0.0001998,2]
[346331225,1734895851697,-1500.0,0.00019982,2]
[346331226,1734895851706,-150.0,0.00019982,2]
[346331227,1734895851716,-1500.0,0.00019983,2]
[346331228,1734895851726,-150.0,0.00019983,2]
[346331229,1734895851736,-150.0,0.00019983,2]
[346331230,1734895851745,-150.0,0.00019984,2]
[346331231,1734895851755,-150.0,0.00019987,2]
[346331232,1734895851764,-150.0,0.00019989,2]
[346331233,1734895851774,-21311.78300961,0.0001999,2]
[346331234,1734895851783,-15416.27835465,0.0001999,2]
[346331235,1734895851793,-150.0,0.00019991,2]
[346331236,1734895851802,-223.079202,0.00019996,2]
[346331237,1734895851812,-2122.9049956,0.00019996,2]
[346331238,1734895851821,-2388.3154529,0.00019996,2]
[346331239,1734895851831,-711.9166265,0.00019996,2]
[346331240,1734895851841,-736.2208533,0.00019996,2]
[346331241,1734895851851,-150.0,0.00019997,2]
[346331242,1734895851861,-300.0,0.00019999,2]
[346331243,1734895851871,-700.82,0.00019999,2]
[346331244,1734895851880,-94880.87474971,0.00019999,2]
[346331245,1734895851890,-1173.36,0.00019999,2]
[346331246,1734895851899,-1173.36,0.00019999,2]
[346331247,1734895851908,-1173.36,0.00019999,2]
[346331248,1734895851918,-1173.36,0.00019999,2]
[346331249,1734895851928,-1173.36,0.00019999,2]
[346331250,1734895851937,-1173.36,0.00019999,2]
[346331251,1734895851947,-1173.36,0.00019999,2]
[346331252,1734895851957,-1173.36,0.00019999,2]
[346331253,1734895851967,-1173.36,0.00019999,2]
[346331254,1734895851977,-1173.36,0.00019999,2]
[346331255,1734895851987,-1173.36,0.00019999,2]
[346331256,1734895851997,-1173.36,0.00019999,2]
[346331257,1734895852007,-1173.36,0.00019999,2]
[346331258,1734895852017,-1173.36,0.00019999,2]
[346331259,1734895852026,-1173.36,0.00019999,2]
[346331260,1734895852036,-1173.36,0.00019999,2]
[346331261,1734895852046,-1173.36,0.00019999,2]
[346331262,1734895852055,-1173.36,0.00019999,2]
[346331263,1734895852065,-1173.50473333,0.00019999,2]
[346331264,1734895852075,-6446.77811308,0.0002,2]
[346331265,1734895852086,-1000.0,0.0002,2]
[346331266,1734895852096,-1000.0,0.0002,3]
[346331267,1734895852106,-1000.0,0.0002,4]
[346331268,1734895852116,-6743628.44661536,0.0002,2]
[346331269,1734895852127,-243029.48965727,0.0002,2]
[346331270,1734895852302,-150.0,0.0002,2]
[346331271,1734895852312,-202.6,0.0002,2]
[346331272,1734895852322,-7240.19682636,0.0002,4]
[346331273,1734895852332,-38092.41599452,0.0002,2]
[346331274,1734895852341,-2000.0,0.0002,2]
[346331275,1734895852351,-3392.6406025,0.0002,2]
[346331276,1734895852360,-2988.23,0.0002,2]
[346331277,1734895852370,-1000.0,0.0002,2]
[346331278,1734895852380,-1000.0,0.0002,2]
[346331279,1734895852390,-1000.0,0.0002,2]
[346331280,1734895852399,-1000.0,0.0002,2]
[346331281,1734895852408,-1000.0,0.0002,2]
[346331282,1734895852418,-1000.0,0.0002,2]
[346331283,1734895852427,-1000.0,0.0002,2]
[346331284,1734895852437,-1000.0,0.0002,2]
[346331285,1734895852448,-3200.0,0.0002,2]
[346331286,1734895852459,-1224.0,0.0002,7]
[346331287,1734895852468,-381.045087,0.0002,2]
[346331288,1734895852478,-1159.52804,0.0002,2]
[346331289,1734895852488,-551.56,0.0002,2]
[346331290,1734895852498,-500.0,0.0002,2]
[346331291,1734895852507,-3000.0,0.0002,2]
[346331292,1734895852517,-150.00481962,0.0002,2]
[346331293,1734895852529,-500.0,0.0002,2]
[346331294,1734895852540,-411.4,0.0002,2]
[346331295,1734895852550,-500.0,0.0002,2]
[346331296,1734895852559,-589.8,0.0002,2]
[346331297,1734895852569,-2110.0,0.0002,2]
[346331298,1734895852578,-500.0,0.0002,2]
[346331299,1734895852588,-500.0,0.0002,2]
[346331300,1734895852597,-500.0,0.0002,2]
[346331301,1734895852607,-500.0,0.0002,2]
[346331302,1734895852617,-500.0,0.0002,2]
[346331303,1734895852626,-500.0,0.0002,2]
[346331304,1734895852635,-500.0,0.0002,2]
[346331305,1734895852644,-500.0,0.0002,2]
[346331306,1734895852653,-500.0,0.0002,2]
[346331307,1734895852662,-500.0,0.0002,2]
[346331308,1734895852672,-500.0,0.0002,2]
[346331309,1734895852681,-500.0,0.0002,2]
[346331310,1734895852691,-500.0,0.0002,2]
[346331311,1734895852700,-500.0,0.0002,2]
[346331312,1734895852713,-500.0,0.0002,2]
[346331313,1734895852722,-500.0,0.0002,2]
[346331314,1734895852732,-500.0,0.0002,2]
[346331315,1734895852741,-500.0,0.0002,2]
[346331316,1734895852750,-500.0,0.0002,2]
[346331317,1734895852760,-500.0,0.0002,2]
[346331318,1734895852769,-329.14,0.0002,2]
[346331319,1734895852778,-500.0,0.0002,2]
[346331320,1734895852788,-500.0,0.0002,2]
[346331321,1734895852797,-500.0,0.0002,2]
[346331322,1734895852806,-500.0,0.0002,2]
[346331323,1734895852815,-500.0,0.0002,2]
[346331324,1734895852825,-500.0,0.0002,2]
[346331325,1734895852835,-500.0,0.0002,2]
[346331326,1734895852844,-500.0,0.0002,2]
[346331327,1734895852853,-500.0,0.0002,2]
[346331328,1734895852862,-500.0,0.0002,2]
[346331329,1734895852872,-500.0,0.0002,2]
[346331330,1734895852881,-500.0,0.0002,2]
[346331331,1734895852891,-500.0,0.0002,2]
[346331332,1734895852902,-500.0,0.0002,2]
[346331333,1734895852911,-500.0,0.0002,2]
[346331334,1734895852921,-500.0,0.0002,2]
[346331335,1734895852930,-500.0,0.0002,2]
[346331336,1734895852940,-500.0,0.0002,2]
[346331337,1734895852950,-500.0,0.0002,2]
[346331338,1734895852960,-500.0,0.0002,2]
[346331339,1734895852970,-500.0,0.0002,2]
[346331340,1734895852978,-500.0,0.0002,2]
[346331341,1734895852989,-500.0,0.0002,2]
[346331342,1734895852999,-500.0,0.0002,2]
[346331343,1734895853008,-500.0,0.0002,2]
[346331344,1734895853018,-500.0,0.0002,2]
[346331345,1734895853027,-500.0,0.0002,2]
[346331346,1734895853036,-500.0,0.0002,2]
[346331347,1734895853045,-500.0,0.0002,2]
[346331348,1734895853055,-500.0,0.0002,2]
[346331349,1734895853064,-500.0,0.0002,2]
[346331350,1734895853073,-500.0,0.0002,2]
[346331351,1734895853082,-500.0,0.0002,2]
[346331352,1734895853091,-500.0,0.0002,2]
[346331353,1734895853101,-500.0,0.0002,2]
[346331354,1734895853110,-500.0,0.0002,2]
[346331355,1734895853119,-500.0,0.0002,2]
[346331356,1734895853128,-500.0,0.0002,2]
[346331357,1734895853137,-500.0,0.0002,2]
[346331358,1734895853146,-500.0,0.0002,7]
[346331359,1734895853156,-500.0,0.0002,2]
[346331360,1734895853166,-500.0,0.0002,2]
[346331361,1734895853175,-500.0,0.0002,2]
[346331362,1734895853184,-500.0,0.0002,2]
[346331363,1734895853194,-500.0,0.0002,2]
[346331364,1734895853204,-500.0,0.0002,2]
[346331365,1734895853215,-500.0,0.0002,2]
[346331366,1734895853225,-500.0,0.0002,2]
[346331367,1734895853235,-500.0,0.0002,2]
[346331368,1734895853244,-500.0,0.0002,2]
[346331369,1734895853254,-500.0,0.0002,2]
[346331370,1734895853263,-500.0,0.0002,2]
[346331371,1734895853273,-500.0,0.0002,2]
[346331372,1734895853282,-500.0,0.0002,2]
[346331373,1734895853291,-500.0,0.0002,2]
[346331374,1734895853300,-500.0,0.0002,2]
[346331375,1734895853310,-500.0,0.0002,2]
[346331376,1734895853320,-500.0,0.0002,2]
[346331377,1734895853329,-500.0,0.0002,2]
[346331378,1734895853339,-500.0,0.0002,2]
[346331379,1734895853349,-500.0,0.0002,2]
[346331380,1734895853358,-575.32,0.0002,2]
[346331381,1734895853367,-500.0,0.0002,2]
[346331382,1734895853376,-500.0,0.0002,2]
[346331383,1734895853386,-500.0,0.0002,2]
[346331384,1734895853395,-500.0,0.0002,2]
[346331385,1734895853404,-500.0,0.0002,2]
[346331386,1734895853414,-500.0,0.0002,2]
[346331387,1734895853423,-500.0,0.0002,2]
[346331388,1734895853433,-500.0,0.0002,2]
[346331389,1734895853443,-500.0,0.0002,2]
[346331390,1734895853457,-500.0,0.0002,2]
[346331391,1734895853467,-500.0,0.0002,2]
[346331392,1734895853476,-500.0,0.0002,2]
[346331393,1734895853485,-500.0,0.0002,2]
[346331394,1734895853495,-500.0,0.0002,2]
[346331395,1734895853505,-500.0,0.0002,2]
[346331396,1734895853514,-500.0,0.0002,2]
[346331397,1734895853523,-500.0,0.0002,2]
[346331398,1734895853532,-500.0,0.0002,2]
[346331399,1734895853541,-500.0,0.0002,2]
[346331400,1734895853551,-500.0,0.0002,2]
[346331401,1734895853560,-500.0,0.0002,2]
[346331402,1734895853569,-500.0,0.0002,2]
[346331403,1734895853578,-500.0,0.0002,2]
[346331404,1734895853588,-500.0,0.0002,2]
[346331405,1734895853598,-500.0,0.0002,2]
[346331406,1734895853607,-500.0,0.0002,2]
[346331407,1734895853617,-500.0,0.0002,2]
[346331408,1734895853626,-500.0,0.0002,2]
[346331409,1734895853635,-500.0,0.0002,2]
[346331410,1734895853645,-500.0,0.0002,2]
[346331411,1734895853654,-500.0,0.0002,2]
[346331412,1734895853663,-500.0,0.0002,2]
[346331413,1734895853674,-500.0,0.0002,2]
[346331414,1734895853684,-500.0,0.0002,2]
[346331415,1734895853694,-500.0,0.0002,2]
[346331416,1734895853705,-500.0,0.0002,2]
[346331417,1734895853714,-500.0,0.0002,2]
[346331418,1734895853723,-500.0,0.0002,2]
[346331419,1734895853733,-500.0,0.0002,2]
[346331420,1734895853743,-500.0,0.0002,2]
[346331421,1734895853752,-500.0,0.0002,2]
[346331422,1734895853763,-500.0,0.0002,2]
[346331423,1734895853773,-500.0,0.0002,2]
[346331424,1734895853782,-500.0,0.0002,2]
[346331425,1734895853792,-500.0,0.0002,2]
[346331426,1734895853801,-500.0,0.0002,2]
[346331427,1734895853812,-500.0,0.0002,2]
[346331428,1734895853821,-500.0,0.0002,2]
[346331429,1734895853831,-500.0,0.0002,2]
[346331430,1734895853841,-500.0,0.0002,2]
[346331431,1734895853850,-500.0,0.0002,2]
[346331432,1734895853861,-2331.33,0.0002,2]
[346331433,1734895853871,-500.0,0.0002,2]
[346331434,1734895853880,-592.13,0.0002,2]